Workbook

Sheet ER
A1: EUT: | B1: XYZ Widget | E1: Test ID: | F1: ER-RS1A | H1: Combined Rd/RT? | I1: No
A2: Test Date: | B2: 2017-02-23 | E2: Red Signal #: | F2: RS1A | H2: Test Type: | I2: Rd
A3: Tested By: | B3: John Doe | E3: Media (ER, BLC): | F3: ER | H3: Category: | I3: B
A4: Charge No.: | B4: N/A | E4: Level (I, II, or III): | F4: II | H4: Rd Rate: | I4: 1 kbps
A5: Mode: | B5: EUT On in Mode A | E5: Signal Class: | F5: 2 | H5: Rt Rate: | I5: N/A
E7: Table of CE
B8: Receiver | C8: Signal | D8: 30% AM | E8: Transducer | G8: Corrected | I8: Delta Above | K8: Lookup Table Parameters
A9: Frequency | B9: Bandwidth | C9: Generator | D9: Factor | E9: Correction Factor | F9: Cable Loss | G9: Level | H9: Limit | I9: Limit | K9: Transducer | L9: Test Limit | M9: Cable
A10: (MHz) | B10: (MHz) | C10: (dBm) | D10: (dB) | E10: (dB) | F10: (dB) | G10: (dBuV/m) | H10: (dBuV/m) | I10: (dB) | K10: (name) | L10: (name) | M10: (name)
A11: 10 | B11: 0.05 | C11: -82 | D11: -10 | E11: =log_inter(A11,MATCH(K11,Transducer_No,0),Transducer) -> 6.17 | F11: =log_inter(A11,MATCH(M11,Cable_No,0),Cable) -> 0.1 | G11: =C11+D11+E11+F11+107 -> 21.27 | H11: =log_inter(A11,MATCH(L11,Limit_No,0),Limit)+($F$5-2)*10 -> 20 | I11: =G11-H11 -> 1.27 | K11: SAS2A | L11: ERIIB | M11: Cable1
A12: 62 | B12: 0.05 | C12: -83 | D12: -10 | E12: =log_inter(A12,MATCH(K12,Transducer_No,0),Transducer) -> 14.87758562 | F12: =log_inter(A12,MATCH(M12,Cable_No,0),Cable) -> 0.2584783379 | G12: =C12+D12+E12+F12+107 -> 29.13606395 | H12: =log_inter(A12,MATCH(L12,Limit_No,0),Limit)+($F$5-2)*10 -> 35.84783379 | I12: =G12-H12 -> -6.711769835 | K12: SAS2A | L12: ERIIB | M12: Cable1
A13: 149 | B13: 0.05 | C13: -87 | D13: -10 | E13: =log_inter(A13,MATCH(K13,Transducer_No,0),Transducer) -> 7.176722607 | F13: =log_inter(A13,MATCH(M13,Cable_No,0),Cable) -> 0.3743320603 | G13: 17.55105467 | H13: =log_inter(A13,MATCH(L13,Limit_No,0),Limit)+($F$5-2)*10 -> 43.46372537 | I13: -25.9126707 | K13: SAS2A | L13: ERIIB | M13: Cable1
A14: 225 | B14: 0.05 | C14: -60 | D14: -10 | E14: =log_inter(A14,MATCH(K14,Transducer_No,0),Transducer) -> 6.811897137 | F14: =log_inter(A14,MATCH(M14,Cable_No,0),Cable) -> 0.4511577818 | G14: 44.26305492 | H14: =log_inter(A14,MATCH(L14,Limit_No,0),Limit)+($F$5-2)*10 -> 47.04365036 | I14: -2.780595444 | K14: SAS2A | L14: ERIIB | M14: Cable1
E18: Table of DRE
B19: Receiver | C19: Signal | D19: 30% AM | E19: Transducer | G19: Corrected | I19: Delta Above | K19: Lookup Table Parameters
A20: Frequency | B20: Bandwidth | C20: Generator | D20: Factor | E20: Correction Factor | F20: Cable Loss | G20: Level | H20: Limit | I20: Limit | K20: Transducer | L20: Test Limit | M20: Cable
A21: (MHz) | B21: (MHz) | C21: (dBm) | D21: (dB) | E21: (dB) | F21: (dB) | G21: (dBuV/m) | H21: (dBuV/m) | I21: (dB) | K21: (name) | L21: (name) | M21: (name)
A22: 25 | B22: 0.05 | C22: -70 | D22: -10 | E22: =log_inter(A22,MATCH(K22,Transducer_No,0),Transducer) -> 8.5 | F22: =log_inter(A22,MATCH(M22,Cable_No,0),Cable) -> 0.1795880017 | G22: =C22+D22+E22+F22+107 -> 35.679588 | H22: =log_inter(A22,MATCH(L22,Limit_No,0),Limit)+($F$5-2)*10 -> 27.95880017 | I22: =G22-H22 -> 7.720787828 | K22: SAS2A | L22: ERIIB | M22: Cable1
A23: 250 | B23: 0.05 | C23: -83 | D23: -10 | E23: =log_inter(A23,MATCH(K23,Transducer_No,0),Transducer) -> 4.895305696 | F23: =log_inter(A23,MATCH(M23,Cable_No,0),Cable) -> 0.4707970326 | G23: =C23+D23+E23+F23+107 -> 19.36610273 | H23: =log_inter(A23,MATCH(L23,Limit_No,0),Limit)+($F$5-2)*10 -> 47.95880017 | I23: =G23-H23 -> -28.59269745 | K23: SAS2A | L23: ERIIB | M23: Cable1
A24: 280 | B24: 0.05 | C24: -87 | D24: -10 | E24: =log_inter(A24,MATCH(K24,Transducer_No,0),Transducer) -> 7.575094964 | F24: =log_inter(A24,MATCH(M24,Cable_No,0),Cable) -> 0.491921554 | G24: 18.06701652 | H24: =log_inter(A24,MATCH(L24,Limit_No,0),Limit)+($F$5-2)*10 -> 48.94316063 | I24: -30.87614411 | K24: SAS2A | L24: ERIIB | M24: Cable1
A25: 300 | B25: 0.05 | C25: -60 | D25: -10 | E25: =log_inter(A25,MATCH(K25,Transducer_No,0),Transducer) -> 9.206512077 | F25: =log_inter(A25,MATCH(M25,Cable_No,0),Cable) -> 0.5047818583 | G25: 46.71129394 | H25: =log_inter(A25,MATCH(L25,Limit_No,0),Limit)+($F$5-2)*10 -> 49.54242509 | I25: -2.831131159 | K25: SAS2A | L25: ERIIB | M25: Cable1

Sheet BLC
A1: EUT: | B1: XYZ Widget | E1: Test ID: | F1: BLC-RS1A-CAN | H1: Combined Rd/RT? | I1: No
A2: Test Date: | B2: 2017-02-23 | E2: Red Signal #: | F2: RS1A | H2: Test Type: | I2: Rd
A3: Tested By: | B3: John Doe | E3: Media (ER, BLC): | F3: BLC-AC Neutral | H3: Category: | I3: B
A4: Charge No.: | B4: N/A | E4: Level (I, II, or III): | F4: I | H4: Rd Rate: | I4: 500 bps
A5: Mode: | B5: EUT On in Mode A | E5: Signal Class: | F5: 2 | H5: Rt Rate: | I5: N/A
E7: Table of CE
B8: Receiver | C8: Signal | D8: 30% AM | E8: Transducer | G8: Corrected | I8: Delta Above | K8: Lookup Table Parameters
A9: Frequency | B9: Bandwidth | C9: Generator | D9: Factor | E9: Correction Factor | F9: Cable Loss | G9: Level | H9: Limit | I9: Limit | K9: Transducer | L9: Test Limit | M9: Cable
A10: (MHz) | B10: (MHz) | C10: (dBm) | D10: (dB) | E10: (dB) | F10: (dB) | G10: (dBuV) | H10: (dBuV) | I10: (dB) | K10: (name) | L10: (name) | M10: (name)
A11: 10 | B11: 0.05 | C11: -82 | D11: -10 | E11: =log_inter(A11,MATCH(K11,Transducer_No,0),Transducer) -> 0 | F11: =log_inter(A11,MATCH(M11,Cable_No,0),Cable) -> 0.1 | G11: =C11+D11+E11+F11+107 -> 15.1 | H11: =log_inter(A11,MATCH(L11,Limit_No,0),Limit)+($F$5-2)*10 -> 10 | I11: =G11-H11 -> 5.1 | K11: LISN7225-1 | L11: BLCIB | M11: Cable1
A12: 62 | B12: 0.05 | C12: -83 | D12: -10 | E12: =log_inter(A12,MATCH(K12,Transducer_No,0),Transducer) -> 0.1551700603 | F12: =log_inter(A12,MATCH(M12,Cable_No,0),Cable) -> 0.2584783379 | G12: =C12+D12+E12+F12+107 -> 14.4136484 | H12: =log_inter(A12,MATCH(L12,Limit_No,0),Limit)+($F$5-2)*10 -> 21.88587534 | I12: =G12-H12 -> -7.472226944 | K12: LISN7225-1 | L12: BLCIB | M12: Cable1
A13: 149 | B13: 0.05 | C13: -87 | D13: -10 | E13: =log_inter(A13,MATCH(K13,Transducer_No,0),Transducer) -> 0.7876561653 | F13: =log_inter(A13,MATCH(M13,Cable_No,0),Cable) -> 0.3743320603 | G13: 11.16198823 | H13: =log_inter(A13,MATCH(L13,Limit_No,0),Limit)+($F$5-2)*10 -> 27.59779403 | I13: -16.4358058 | K13: LISN7225-1 | L13: BLCIB | M13: Cable1
A14: 225 | B14: 0.05 | C14: -60 | D14: -10 | E14: =log_inter(A14,MATCH(K14,Transducer_No,0),Transducer) -> 1.7 | F14: =log_inter(A14,MATCH(M14,Cable_No,0),Cable) -> 0.4511577818 | G14: 39.15115778 | H14: =log_inter(A14,MATCH(L14,Limit_No,0),Limit)+($F$5-2)*10 -> 30.28273777 | I14: 8.86842001 | K14: LISNTH | L14: BLCIB | M14: Cable1
E18: Table of DRE
B19: Receiver | C19: Signal | D19: 30% AM | E19: Transducer | G19: Corrected | I19: Delta Above | K19: Lookup Table Parameters
A20: Frequency | B20: Bandwidth | C20: Generator | D20: Factor | E20: Correction Factor | F20: Cable Loss | G20: Level | H20: Limit | I20: Limit | K20: Transducer | L20: Test Limit | M20: Cable
A21: (MHz) | B21: (MHz) | C21: (dBm) | D21: (dB) | E21: (dB) | F21: (dB) | G21: (dBuV) | H21: (dBuV) | I21: (dB) | K21: (name) | L21: (name) | M21: (name)
A22: 25 | B22: 0.05 | C22: -70 | D22: -10 | E22: =log_inter(A22,MATCH(K22,Transducer_No,0),Transducer) -> 0 | F22: =log_inter(A22,MATCH(M22,Cable_No,0),Cable) -> 0.1795880017 | G22: =C22+D22+E22+F22+107 -> 27.179588 | H22: =log_inter(A22,MATCH(L22,Limit_No,0),Limit)+($F$5-2)*10 -> 15.96910013 | I22: =G22-H22 -> 11.21048787 | K22: LISN7225-1 | L22: BLCIB | M22: Cable1
A23: 250 | B23: 0.05 | C23: -83 | D23: -10 | E23: =log_inter(A23,MATCH(K23,Transducer_No,0),Transducer) -> 1.7 | F23: =log_inter(A23,MATCH(M23,Cable_No,0),Cable) -> 0.4707970326 | G23: =C23+D23+E23+F23+107 -> 16.17079703 | H23: =log_inter(A23,MATCH(L23,Limit_No,0),Limit)+($F$5-2)*10 -> 30.96910013 | I23: =G23-H23 -> -14.7983031 | K23: LISNTH | L23: BLCIB | M23: Cable1
A24: 280 | B24: 0.05 | C24: -87 | D24: -10 | E24: =log_inter(A24,MATCH(K24,Transducer_No,0),Transducer) -> 1.7 | F24: =log_inter(A24,MATCH(M24,Cable_No,0),Cable) -> 0.491921554 | G24: 12.19192155 | H24: =log_inter(A24,MATCH(L24,Limit_No,0),Limit)+($F$5-2)*10 -> 31.70737047 | I24: -19.51544892 | K24: LISNTH | L24: BLCIB | M24: Cable1
A25: 300 | B25: 0.05 | C25: -60 | D25: -10 | E25: =log_inter(A25,MATCH(K25,Transducer_No,0),Transducer) -> 1.7 | F25: =log_inter(A25,MATCH(M25,Cable_No,0),Cable) -> 0.5047818583 | G25: 39.20478186 | H25: =log_inter(A25,MATCH(L25,Limit_No,0),Limit)+($F$5-2)*10 -> 32.15681882 | I25: 7.047963038 | K25: LISNTH | L25: BLCIB | M25: Cable1

Sheet Limits
A1: ER Level II Cat B (example only) | D1: ER Level II Cat C | G1: ER Level II Cat D | J1: ER Level II Cat E | M1: ER Level II Cat F | P1: BLC Level I Cat B
A2: Frequency | B2: Level | D2: Frequency | E2: Level | G2: Frequency | H2: Level | J2: Frequency | K2: Level | M2: Frequency | N2: Level | P2: Frequency | Q2: Level
A3: (MHz) | B3: (dBuV/m) | D3: (MHz) | E3: (dBuV/m) | G3: (MHz) | H3: (dBuV/m) | J3: (MHz) | K3: (dBuV/m) | M3: (MHz) | N3: (dBuV/m) | P3: (MHz) | Q3: (dBuV)
A4: ERIIB | D4: ERIIC | G4: ERIID | J4: ERIIE | M4: ERIIE | P4: BLCIB
A5: 0.001 | B5: 80 | D5: 0.001 | E5: 90 | G5: 0.001 | H5: 100 | J5: 0.001 | K5: 110 | M5: 0.001 | N5: 120 | P5: 0.001 | Q5: 50
A6: 1 | B6: 20 | D6: 1 | E6: 30 | G6: 1 | H6: 40 | J6: 1 | K6: 50 | M6: 1 | N6: 60 | P6: 1 | Q6: 10
A7: 10 | B7: 20 | D7: 10 | E7: 30 | G7: 10 | H7: 40 | J7: 10 | K7: 50 | M7: 10 | N7: 60 | P7: 10 | Q7: 10
A8: 1000 | B8: 60 | D8: 1000 | E8: 70 | G8: 1000 | H8: 80 | J8: 1000 | K8: 90 | M8: 1000 | N8: 100 | P8: 1000 | Q8: 40

Sheet Transducers
A1: SAS-2/A | B1: Antenna | D1: Rod | E1: Antenna | G1: Bicon | H1: Antenna | J1: LogPer | K1: Antenna | M1: Horn3115 | N1: Antenna | P1: LISN7225-1 | S1: LISN405-1AC | V1: LISN405-1DC | Y1: LISN397-1-1 | AB1: LISNTH
A2: Antenna | B2: Correction | D2: Antenna | E2: Correction | G2: Antenna | H2: Correction | J2: Antenna | K2: Correction | M2: Antenna | N2: Correction | P2: LISN | Q2: Correction | S2: LISN | T2: Correction | V2: LISN | W2: Correction | Y2: LISN | Z2: Correction | AB2: LISN | AC2: Correction
A3: Frequency | B3: Factor | D3: Frequency | E3: Factor | G3: Frequency | H3: Factor | J3: Frequency | K3: Factor | M3: Frequency | N3: Factor | P3: Frequency | Q3: Factor | S3: Frequency | T3: Factor | V3: Frequency | W3: Factor | Y3: Frequency | Z3: Factor | AB3: Frequency | AC3: Factor
A4: (MHz) | B4: (dB/m) | D4: (MHz) | E4: (dB/m) | G4: (MHz) | H4: (dB/m) | J4: (MHz) | K4: (dB/m) | M4: (MHz) | N4: (dB/m) | P4: (MHz) | Q4: (dB) | S4: (MHz) | T4: (dB) | V4: (MHz) | W4: (dB) | Y4: (MHz) | Z4: (dB) | AB4: (MHz) | AC4: (dB)
A5: SAS2A | D5: Rod | G5: Bicon | J5: LogPer | M5: Horn3115 | P5: LISN7225-1 | S5: LISN405-1AC | V5: LISN405-1DC | Y5: LISN397-1-1 | AB5: LISNTH
A6: 0.0001 | B6: 51.11 | D6: 0.009 | E6: 8 | G6: 20 | H6: 10.9 | J6: 200 | K6: 15.8 | M6: 1000 | N6: 24.5 | P6: 0.0001 | Q6: 34.7153592 | S6: 0.0001 | T6: 29.23433952 | V6: 0.0001 | W6: 0.4191406035 | Y6: 1 | Z6: 0.5 | AB6: 200 | AC6: 1.7
A7: 0.0002 | B7: 39.14 | D7: 1 | E7: 7.5 | G7: 30 | H7: 10.9 | J7: 225 | K7: 14.6 | M7: 1500 | N7: 25.5 | P7: 0.0002 | Q7: 28.69915621 | S7: 0.0002 | T7: 23.2292526 | V7: 0.0002 | W7: 0.1086380799 | Y7: 50 | Z7: 0.5 | AB7: 600 | AC7: 1.7
A8: 0.0005 | B8: 26.97 | D8: 10 | E8: 8.5 | G8: 40 | H8: 12.1 | J8: 250 | K8: 14.1 | M8: 2000 | N8: 27.9 | P8: 0.0004 | Q8: 22.69609965 | S8: 0.0004 | T8: 17.27015642 | V8: 0.0004 | W8: 0 | Y8: 100 | Z8: 1 | AB8: 700 | AC8: 1.4
A9: 0.001 | B9: 19.97 | D9: 30 | E9: 9 | G9: 50 | H9: 12.7 | J9: 275 | K9: 14.2 | M9: 2500 | N9: 28.7 | P9: 0.001 | Q9: 14.85815784 | S9: 0.001 | T9: 9.719094603 | V9: 0.001 | W9: 0 | Y9: 200 | Z9: 2 | AB9: 800 | AC9: 1.1
A10: 0.002 | B10: 14.36 | G10: 60 | H10: 11.1 | J10: 300 | K10: 15.4 | M10: 3000 | N10: 30.5 | P10: 0.002 | Q10: 9.243652198 | S10: 0.002 | T10: 4.904383867 | V10: 0.002 | W10: 0 | AB10: 900 | AC10: 0.8
A11: 0.005 | B11: 9.47 | G11: 70 | H11: 9.1 | J11: 325 | K11: 16.1 | M11: 3500 | N11: 31.7 | P11: 0.004 | Q11: 4.549081812 | S11: 0.004 | T11: 1.828008673 | V11: 0.004 | W11: 0 | AB11: 1000 | AC11: 0.7
A12: 0.01 | B12: 7.42 | G12: 80 | H12: 7.8 | J12: 350 | K12: 17.4 | M12: 4000 | N12: 32.9 | P12: 0.006 | Q12: 2.606453556 | S12: 0.006 | T12: 0.9082280628 | V12: 0.006 | W12: 0 | AB12: 1500 | AC12: 1.2
A13: 0.02 | B13: 6.26 | G13: 90 | H13: 10.5 | J13: 375 | K13: 17.3 | M13: 4500 | N13: 32.6 | P13: 0.008 | Q13: 1.651267247 | S13: 0.008 | T13: 0.5340059598 | V13: 0.008 | W13: 0 | AB13: 2000 | AC13: 1
A14: 0.05 | B14: 5.53 | G14: 100 | H14: 12.5 | J14: 400 | K14: 17 | M14: 5000 | N14: 34.1 | P14: 0.01 | Q14: 1.126272823 | S14: 0.01 | T14: 0.3492376342 | V14: 0.01 | W14: 0 | AB14: 2500 | AC14: 0.6
A15: 0.1 | B15: 5.34 | G15: 110 | H15: 16.4 | J15: 425 | K15: 16.7 | M15: 5500 | N15: 34.7 | P15: 0.015 | Q15: 0.53687223 | S15: 0.015 | T15: 0 | V15: 0.015 | W15: 0 | AB15: 3000 | AC15: 1
A16: 0.2 | B16: 5.17 | G16: 120 | H16: 14.1 | J16: 450 | K16: 17.4 | M16: 6000 | N16: 35 | P16: 0.05 | Q16: 0 | S16: 4 | T16: 0 | V16: 4 | W16: 0 | AB16: 3500 | AC16: 0.8
A17: 0.5 | B17: 5.34 | G17: 130 | H17: 13.9 | J17: 475 | K17: 18.7 | M17: 6500 | N17: 35.2 | P17: 50 | Q17: 0 | AB17: 4000 | AC17: 0.8
A18: 1 | B18: 5.34 | G18: 140 | H18: 15.1 | J18: 500 | K18: 20.3 | M18: 7000 | N18: 36.5 | P18: 100 | Q18: 0.5 | AB18: 4500 | AC18: 1.1
A19: 2 | B19: 5.34 | G19: 150 | H19: 16.5 | J19: 525 | K19: 19.1 | M19: 7500 | N19: 37.4 | P19: 200 | Q19: 1 | AB19: 5000 | AC19: 1.1
A20: 5 | B20: 6.67 | G20: 160 | H20: 15.9 | J20: 550 | K20: 18.9 | M20: 8000 | N20: 37.2 | AB20: 5500 | AC20: 1.1
A21: 10 | B21: 6.17 | G21: 170 | H21: 17.1 | J21: 575 | K21: 19.2 | M21: 8500 | N21: 37.8 | AB21: 6000 | AC21: 1.3
A22: 15 | B22: 7 | G22: 180 | H22: 16.7 | J22: 600 | K22: 19.6 | M22: 9000 | N22: 38.1 | AB22: 6500 | AC22: 1.3
A23: 20 | B23: 7.5 | G23: 190 | H23: 18.9 | J23: 625 | K23: 20.5 | M23: 9500 | N23: 38.2 | AB23: 7000 | AC23: 1.2
A24: 25 | B24: 8.5 | G24: 200 | H24: 18 | J24: 650 | K24: 21.6 | M24: 10000 | N24: 38.3 | AB24: 7500 | AC24: 1.3
A25: 30 | B25: 9.83 | J25: 675 | K25: 21.8 | M25: 10500 | N25: 38.4 | AB25: 8000 | AC25: 2.2
A26: 30 | B26: 10.5662304 | J26: 700 | K26: 21.1 | M26: 11000 | N26: 38.9 | AB26: 8500 | AC26: 2.7
A27: 35 | B27: 16.94853704 | J27: 725 | K27: 21 | M27: 11500 | N27: 39.6 | AB27: 9000 | AC27: 2.6
A28: 40 | B28: 16.63838846 | J28: 750 | K28: 21.5 | M28: 12000 | N28: 39.2 | AB28: 9500 | AC28: 4
A29: 45 | B29: 14.51268681 | J29: 757 | K29: 22.1 | M29: 12500 | N29: 39 | AB29: 10000 | AC29: 4.2
A30: 49.9 | B30: 14.23588812 | J30: 800 | K30: 22.6 | M30: 13000 | N30: 40
A31: 50 | B31: 14.2842403 | J31: 825 | K31: 22.6 | M31: 13500 | N31: 40.6
A32: 60 | B32: 15.187786 | J32: 850 | K32: 22.7 | M32: 14000 | N32: 41.3
A33: 70 | B33: 13.72947985 | J33: 875 | K33: 22.9 | M33: 14500 | N33: 41
A34: 80 | B34: 13.86301565 | J34: 900 | K34: 23.3 | M34: 15000 | N34: 39.6
A35: 90 | B35: 11.6549196 | J35: 925 | K35: 23.7 | M35: 15500 | N35: 38.3
A36: 100 | B36: 10.19806732 | J36: 950 | K36: 23.9 | M36: 16000 | N36: 38.8
A37: 120 | B37: 7.866395743 | J37: 975 | K37: 24 | M37: 16500 | N37: 40.5
A38: 139.9 | B38: 7.312716482 | J38: 1000 | K38: 24.4 | M38: 17000 | N38: 41.5
A39: 140 | B39: 7.31172042 | M39: 17500 | N39: 44.3
A40: 160 | B40: 7.022389402 | M40: 18000 | N40: 48.5
A41: 180 | B41: 8.10336119
A42: 200 | B42: 8.95446408
A43: 250 | B43: 4.895305696
A44: 300 | B44: 9.206512077
A45: 399.9 | B45: 9.501268192
A46: 400 | B46: 9.307847228
A47: 500 | B47: 11.6556583
A48: 600 | B48: 12.28782568
A49: 700 | B49: 17.37882601
A50: 800 | B50: 16.00940085
A51: 900 | B51: 22.47674806
A52: 1000 | B52: 20.20910324

Sheet Cable Attenuation
A1: Cable | D1: Cable | G1: Cable | J1: Cable | M1: Cable | P1: Cable
A2: Loss | D2: Loss | G2: Loss | J2: Loss | M2: Loss | P2: Loss
A3: Frequency | B3: Loss | D3: Frequency | E3: Loss | G3: Frequency | H3: Loss | J3: Frequency | K3: Loss | M3: Frequency | N3: Loss | P3: Frequency | Q3: Loss
A4: (MHz) | B4: (dB) | D4: (MHz) | E4: (dB) | G4: (MHz) | H4: (dB) | J4: (MHz) | K4: (dB) | M4: (MHz) | N4: (dB) | P4: (MHz) | Q4: (dB)
A5: Cable1 | D5: Cable2 | G5: Cable3 | J5: Cable4 | M5: Cable5 | P5: Cable6
A6: 0.0001 | B6: 0 | D6: 0.0001 | E6: 0 | G6: 0.0001 | H6: 0 | J6: 0.0001 | K6: 0 | M6: 0.0001 | N6: 0 | P6: 0.0001 | Q6: 0
A7: 10 | B7: 0.1 | D7: 10 | E7: 0.11 | G7: 10 | H7: 0.12 | J7: 10 | K7: 0.13 | M7: 10 | N7: 0.14 | P7: 10 | Q7: 0.14
A8: 100 | B8: 0.3 | D8: 100 | E8: 0.33 | G8: 100 | H8: 0.36 | J8: 100 | K8: 0.39 | M8: 100 | N8: 0.42 | P8: 100 | Q8: 0.42
A9: 500 | B9: 0.6 | D9: 500 | E9: 0.66 | G9: 500 | H9: 0.72 | J9: 500 | K9: 0.78 | M9: 500 | N9: 0.84 | P9: 500 | Q9: 0.84
A10: 1000 | B10: 2 | D10: 1000 | E10: 2.2 | G10: 1000 | H10: 2.4 | J10: 1000 | K10: 2.6 | M10: 1000 | N10: 2.8 | P10: 1000 | Q10: 2.8
A11: 3000 | B11: 3 | D11: 3000 | E11: 3.3 | G11: 3000 | H11: 3.6 | J11: 3000 | K11: 3.9 | M11: 3000 | N11: 4.2 | P11: 3000 | Q11: 4.2
A12: 6000 | B12: 4 | D12: 6000 | E12: 4.4 | G12: 6000 | H12: 4.8 | J12: 6000 | K12: 5.2 | M12: 6000 | N12: 5.6 | P12: 6000 | Q12: 5.6
A13: 10000 | B13: 6 | D13: 10000 | E13: 6.6 | G13: 10000 | H13: 7.2 | J13: 10000 | K13: 7.8 | M13: 10000 | N13: 8.4 | P13: 10000 | Q13: 8.4
